fUST/lending_fUST_20250920
["ID","MTS","AMOUNT","RATE_DAILY","PERIOD"]
[386529891,1758355845164,-1133.28,0.00022721,3]
[386529892,1758355845173,-694.73,0.00022731,2]
[386529893,1758355845183,-431.72,0.00022812,5]
[386529894,1758355845192,-693.64891791,0.00022821,2]
[386529895,1758355845202,-2771.82107596,0.00022821,2]
[386529896,1758355845212,-809.75326966,0.00022832,2]
[386529897,1758355845222,-3235.77406557,0.00022832,2]
[386529898,1758355845232,-6000.0,0.00022888,2]
[386529899,1758355845241,-480.0,0.00022889,2]
[386529900,1758355845251,-776.36,0.00022889,2]
[386529901,1758355845260,-1048.2,0.00022891,2]
[386529903,1758355845270,-244.14898554,0.00022891,2]
[386529905,1758355845279,-861.41,0.00022891,2]
[386529907,1758355845289,-861.36,0.00022891,2]
[386529909,1758355845299,-480.0,0.00022891,2]
[386529911,1758355845308,-480.0,0.00022891,2]
[386529912,1758355845318,-480.0,0.00022891,2]
[386529913,1758355845327,-480.0,0.00022891,2]
[386529914,1758355845337,-480.0,0.00022891,2]
[386529915,1758355845346,-1317.33,0.00022892,2]
[386529918,1758355845356,-480.0,0.00022894,2]
[386529920,1758355845366,-612.47,0.00022894,2]
[386529922,1758355845375,-387.98,0.00022894,2]
[386529923,1758355845385,-480.0,0.00022894,2]
[386529924,1758355845395,-480.0,0.00022894,2]
[386529925,1758355845405,-630.4,0.00022894,2]
[386529926,1758355845415,-1573.09,0.00022894,2]
[386529927,1758355845424,-480.0,0.00022894,2]
[386529928,1758355845433,-975.25,0.00022894,2]
[386529929,1758355845444,-480.0,0.00022894,2]
[386529930,1758355845454,-564.56,0.00022895,2]
[386529931,1758355845463,-1221.88,0.00022895,2]
[386529932,1758355845473,-447.18489739,0.00022895,2]
[386529933,1758355845483,-480.0,0.00022899,2]
[386529934,1758355845492,-593.14,0.00022899,2]
[386529935,1758355845502,-480.0,0.00022899,2]
[386529936,1758355845512,-3204.3,0.000229,2]
[386529937,1758355845521,-734.64,0.00022901,2]
[386529938,1758355845531,-1111.66,0.00022901,2]
[386529939,1758355845541,-8481.12,0.00022903,2]
[386529940,1758355845550,-480.0,0.00022903,2]
[386529941,1758355845560,-987.75,0.00022903,2]
[386529942,1758355845570,-179.74835231,0.00022936,2]
[386529943,1758355845580,-848.27550084,0.00023,3]
[386529944,1758355845589,-848.27550084,0.00023,2]
[386529945,1758355845599,-218.03426629,0.00023,2]
[386529946,1758355845611,-160.0,0.00023,2]
[386529947,1758355845621,-160.0,0.00023,2]
[386529948,1758355845631,-160.0,0.00023,2]
[386529949,1758355845640,-160.0,0.00023,2]
[386529950,1758355845650,-694.73,0.00023005,2]
[386529951,1758355845660,-166.53949669,0.00023066,2]
[386529952,1758355845670,-420.0,0.00023103,2]
[386529953,1758355845679,-360.0,0.00023129,2]
[386529954,1758355845689,-480.0,0.00023163,2]
[386529955,1758355845698,-776.36,0.00023163,2]
[386529956,1758355845708,-1048.2,0.00023165,2]
[386529957,1758355845718,-861.41,0.00023165,2]
[386529958,1758355845727,-861.36,0.00023165,2]
[386529959,1758355845736,-480.0,0.00023165,2]
[386529960,1758355845746,-480.0,0.00023165,2]
[386529961,1758355845838,-480.0,0.00023165,2]
[386529962,1758355845851,-480.0,0.00023165,2]
[386529963,1758355845861,-480.0,0.00023165,2]
[386529964,1758355845871,-1317.33,0.00023166,2]
[386529965,1758355845880,-480.0,0.00023168,2]
[386529966,1758355845890,-612.47,0.00023168,2]
[386529967,1758355845900,-480.0,0.00023168,2]
[386529968,1758355845910,-480.0,0.00023168,2]
[386529969,1758355845919,-630.4,0.00023168,2]
[386529970,1758355845929,-1573.09,0.00023168,2]
[386529971,1758355845939,-480.0,0.00023168,2]
[386529972,1758355845948,-975.25,0.00023168,2]
[386529973,1758355845958,-480.0,0.00023168,2]
[386529974,1758355845968,-564.56,0.00023169,2]
[386529975,1758355845978,-1221.88,0.00023169,2]
[386529976,1758355845987,-480.0,0.00023173,2]
[386529977,1758355845998,-593.14,0.00023173,2]
[386529978,1758355846007,-480.0,0.00023173,2]
[386529979,1758355846017,-3204.3,0.00023174,2]
[386529980,1758355846027,-734.64,0.00023175,2]
[386529981,1758355846036,-1111.66,0.00023175,2]
[386529982,1758355846046,-500.0,0.00023177,2]
[386529983,1758355846056,-8481.12,0.00023177,2]
[386529984,1758355846066,-480.0,0.00023177,2]
[386529985,1758355846078,-987.75,0.00023177,2]
[386529986,1758355846087,-218.5297479,0.00023216,2]
[386529987,1758355846097,-1516.31286123,0.00023216,2]
[386529988,1758355846106,-694.73,0.00023279,2]
[386529989,1758355846117,-12167.05366582,0.00023395,2]
[386529990,1758355846127,-966.0895509,0.00023426,2]
[386529991,1758355846136,-3536.4160254,0.00023427,2]
[386529992,1758355846146,-29514.7183933,0.00023427,2]
[386529993,1758355846158,-7421.8621875,0.00023427,2]
[386529994,1758355846167,-1612.2731075,0.00023427,2]
[386529995,1758355846177,-151.0,0.00023427,7]
[386529996,1758355846188,-151.0,0.00023427,7]
[386529997,1758355846198,-151.0,0.00023427,7]
[386529998,1758355846208,-151.0,0.00023427,7]
[386529999,1758355846218,-151.0,0.00023427,7]
[386530000,1758355846228,-151.875404,0.00023427,7]
[386530001,1758355846237,-151.0,0.00023427,7]
[386530002,1758355846248,-208.62747714,0.00023437,2]
[386530003,1758355846258,-776.36,0.00023437,2]
[386530004,1758355846267,-1048.2,0.00023439,2]
[386530005,1758355846277,-861.41,0.00023439,2]
[386530006,1758355846288,-861.36,0.00023439,2]
[386530007,1758355846298,-480.0,0.00023439,2]
[386530008,1758355846308,-480.0,0.00023439,2]
[386530009,1758355846317,-480.0,0.00023439,2]
[386530010,1758355846327,-193.33,0.00023439,2]
[386530011,1758355846336,-480.0,0.00023439,2]
[386530012,1758355846346,-1000.0,0.0002344,2]
[386530013,1758355846356,-1000.0,0.0002344,2]
[386530014,1758355846366,-1004.67181011,0.0002344,2]
[386530015,1758355846376,-124242.4849502,0.0002344,2]
[386530016,1758355846386,-151.0,0.0002344,7]
[386530017,1758355846396,-151.0,0.0002344,7]
[386530018,1758355846405,-151.0,0.0002344,7]
[386530019,1758355846415,-151.0,0.0002344,7]
[386530020,1758355846424,-191.730319,0.0002344,7]
[386530021,1758355846434,-151.0,0.0002344,7]
[386530022,1758355846444,-151.0,0.0002344,7]
[386530023,1758355846454,-151.0,0.0002344,7]
[386530024,1758355846463,-151.0,0.0002344,7]
[386530025,1758355846473,-151.0,0.0002344,7]
[386530026,1758355846483,-515.449931,0.0002344,7]
[386530027,1758355846492,-515.449931,0.0002344,7]
[386530028,1758355846501,-515.449931,0.0002344,7]
[386530029,1758355846511,-515.449931,0.0002344,7]
[386530030,1758355846520,-151.0,0.0002344,7]
[386530031,1758355846530,-151.0,0.0002344,7]
[386530032,1758355846540,-151.437878,0.0002344,7]
[386530033,1758355846550,-166.579602,0.0002344,7]
[386530034,1758355846559,-151.0,0.0002344,7]
[386530035,1758355846568,-151.0,0.0002344,7]
[386530036,1758355846578,-151.0,0.0002344,7]
[386530037,1758355846587,-292.024576,0.0002344,7]
[386530038,1758355846597,-292.024576,0.0002344,7]
[386530039,1758355846606,-292.024576,0.0002344,7]
[386530040,1758355846616,-292.024576,0.0002344,7]
[386530041,1758355846626,-151.0,0.0002344,7]
[386530042,1758355846635,-153.575822,0.0002344,7]
[386530043,1758355846645,-151.0,0.0002344,7]
[386530044,1758355846654,-151.0,0.0002344,7]
[386530045,1758355846664,-151.0,0.0002344,7]
[386530046,1758355846674,-151.0,0.0002344,7]
[386530047,1758355846683,-151.0,0.0002344,7]
[386530048,1758355846693,-151.0,0.0002344,7]
[386530049,1758355846703,-189.266195,0.0002344,7]
[386530050,1758355846713,-189.266195,0.0002344,7]
[386530051,1758355846722,-189.266195,0.0002344,7]
[386530052,1758355846731,-189.266195,0.0002344,7]
[386530053,1758355846742,-151.0,0.0002344,7]
[386530054,1758355846751,-151.0,0.0002344,7]
[386530055,1758355846761,-414.791872,0.0002344,7]
[386530056,1758355846771,-414.791872,0.0002344,7]
[386530057,1758355846781,-414.791872,0.0002344,7]
[386530058,1758355846790,-414.791872,0.0002344,7]
[386530059,1758355846800,-151.0,0.0002344,7]
[386530060,1758355846810,-1317.33,0.0002344,2]
[386530061,1758355846820,-151.0,0.0002344,7]
[386530062,1758355846830,-154.604451,0.0002344,7]
[386530063,1758355846839,-151.0,0.0002344,7]
[386530064,1758355846849,-154.604451,0.0002344,7]
[386530065,1758355846859,-154.604451,0.0002344,7]
[386530066,1758355846868,-87.92103048,0.0002344,7]
[386530067,1758355846889,-66.68342052,0.0002344,7]
[386530068,1758355846899,-151.0,0.0002344,7]
[386530069,1758355846909,-152.900561,0.0002344,7]
[386530070,1758355846919,-151.0,0.0002344,7]
[386530071,1758355846928,-151.0,0.0002344,7]
[386530072,1758355846938,-151.0,0.0002344,7]
[386530073,1758355846948,-152.084447,0.0002344,7]
[386530074,1758355846957,-151.0,0.0002344,7]
[386530075,1758355846967,-151.0,0.0002344,7]
[386530076,1758355846978,-151.0,0.0002344,7]
[386530077,1758355846988,-151.0,0.0002344,7]
[386530078,1758355846997,-151.0,0.0002344,7]
[386530079,1758355847007,-247.997397,0.0002344,7]
[386530080,1758355847017,-151.431202,0.0002344,7]
[386530081,1758355847027,-480.0,0.00023442,2]
[386530082,1758355847036,-612.47,0.00023442,2]
[386530083,1758355847046,-14.18018316,0.00023442,2]
[386530084,1758355847058,-465.81981684,0.00023442,2]
[386530085,1758355847068,-480.0,0.00023442,2]
[386530086,1758355847078,-630.4,0.00023442,2]
[386530087,1758355847088,-1573.09,0.00023442,2]
[386530088,1758355847098,-480.0,0.00023442,2]
[386530089,1758355847109,-405.56675004,0.00023442,2]
[386530090,1758355847121,-569.68324996,0.00023442,2]
[386530091,1758355847131,-497.83438589,0.00023442,2]
[386530092,1758355847142,-564.56,0.00023443,2]
[386530093,1758355847151,-1221.88,0.00023443,2]
[386530094,1758355847161,-480.0,0.00023447,2]
[386530095,1758355847171,-593.14,0.00023447,2]
[386530096,1758355847181,-480.0,0.00023447,2]
[386530097,1758355847191,-3204.3,0.00023448,2]
[386530098,1758355847201,-734.64,0.00023449,2]
[386530099,1758355847210,-1111.66,0.00023449,2]
[386530100,1758355847220,-500.0,0.00023451,2]
[386530101,1758355847230,-151.0,0.00023451,7]
[386530102,1758355847240,-157.240688,0.00023451,7]
[386530103,1758355847249,-170.821631,0.00023451,7]
[386530104,1758355847259,-170.821631,0.00023451,7]
[386530105,1758355847269,-170.821631,0.00023451,7]
[386530106,1758355847279,-170.821631,0.00023451,7]
[386530107,1758355847288,-151.0,0.00023451,7]
[386530108,1758355847298,-151.0,0.00023451,7]
[386530109,1758355847308,-151.0,0.00023451,7]
[386530110,1758355847318,-8481.12,0.00023451,2]
[386530111,1758355847328,-480.0,0.00023451,2]
[386530112,1758355847338,-987.75,0.00023451,2]
[386530113,1758355847347,-500.0,0.00023473,2]
[386530114,1758355847357,-500.64982364,0.00023473,2]
[386530115,1758355847367,-506.61369115,0.00023473,2]
[386530116,1758355847376,-500.0,0.00023473,2]
[386530117,1758355847386,-2274.53844407,0.000235,7]
[386530118,1758355847401,-2477.99155593,0.000235,7]
[386530119,1758355847411,-151.0,0.00023553,7]
[386530120,1758355847420,-151.0,0.00023553,7]
[386530121,1758355847430,-287.921704,0.00023553,7]
[386530122,1758355847440,-694.73,0.00023553,2]
[386530123,1758355847450,-200.0,0.00023561,2]
[386530124,1758355847459,-200.0,0.00023561,2]
[386530125,1758355847469,-200.0,0.00023561,2]
[386530126,1758355847478,-200.0,0.00023561,2]
[386530127,1758355847488,-200.0,0.00023561,2]
[386530128,1758355847498,-200.0,0.00023561,2]
[386530129,1758355847508,-257.95918045,0.00023561,2]
[386530130,1758355847518,-460.0,0.00023677,2]
[386530131,1758355847528,-1000.0,0.00023692,2]
[386530132,1758355847538,-1000.0,0.00023692,2]
[386530133,1758355847548,-1000.0,0.00023692,2]
[386530134,1758355847558,-151.0,0.00023692,2]
[386530135,1758355847568,-1000.0,0.00023692,2]
[386530136,1758355847577,-151.0,0.00023692,2]
[386530137,1758355847587,-1000.0,0.00023692,2]
[386530138,1758355847597,-1000.0,0.00023692,2]
[386530139,1758355847606,-151.0,0.00023692,2]
[386530140,1758355847616,-1000.0,0.00023692,2]
[386530141,1758355847626,-1000.0,0.00023692,2]
[386530142,1758355847636,-250.0,0.00023692,2]
[386530143,1758355847645,-1000.0,0.00023692,2]
[386530144,1758355847655,-151.0,0.00023692,2]
[386530145,1758355847665,-151.0,0.00023692,2]
[386530146,1758355847675,-1000.0,0.00023692,2]
[386530147,1758355847684,-181.08010149,0.00023692,2]
[386530148,1758355847694,-500.0,0.00023692,2]
[386530149,1758355847703,-1000.0,0.00023692,2]
[386530150,1758355847713,-151.0,0.00023692,2]
[386530151,1758355847723,-151.0,0.00023692,2]
[386530152,1758355847732,-1000.0,0.00023692,2]
[386530153,1758355847743,-500.0,0.00023692,2]
[386530154,1758355847753,-1000.0,0.00023692,2]
[386530155,1758355847763,-151.0,0.00023692,2]
[386530156,1758355847772,-500.0,0.00023692,2]
[386530157,1758355847782,-1000.0,0.00023692,2]
[386530158,1758355847791,-1000.0,0.00023692,2]
[386530159,1758355847801,-151.0,0.00023692,2]
[386530160,1758355847811,-151.0,0.00023692,2]
[386530161,1758355847821,-500.0,0.00023692,2]
[386530162,1758355847830,-1000.0,0.00023692,2]
[386530163,1758355847840,-1000.0,0.00023692,2]
[386530164,1758355847850,-151.0,0.00023692,2]
[386530165,1758355847859,-151.0,0.00023692,2]
[386530166,1758355847871,-1000.0,0.00023692,2]
[386530167,1758355847880,-1000.0,0.00023692,2]
[386530168,1758355847890,-151.0,0.00023692,2]
[386530169,1758355847900,-500.0,0.00023692,2]
[386530170,1758355847910,-151.0,0.00023692,2]
[386530171,1758355847921,-151.0,0.00023692,2]
[386530172,1758355847931,-1000.0,0.00023692,2]
[386530173,1758355847941,-1000.0,0.00023692,2]
[386530174,1758355847950,-151.0,0.00023692,2]
[386530175,1758355847960,-500.0,0.00023692,2]
[386530176,1758355847970,-151.0,0.00023692,2]
[386530177,1758355847981,-1000.0,0.00023692,2]
[386530178,1758355847991,-1000.0,0.00023692,2]
[386530179,1758355848000,-151.0,0.00023692,2]
[386530180,1758355848094,-266.85813571,0.00023692,2]
[386530181,1758355848105,-500.0,0.00023692,2]
[386530182,1758355848115,-151.0,0.00023692,2]
[386530183,1758355848125,-151.0,0.00023692,2]
[386530184,1758355848136,-1000.0,0.00023692,2]
[386530185,1758355848146,-1000.0,0.00023692,2]
[386530186,1758355848156,-151.0,0.00023692,2]
[386530187,1758355848166,-151.0,0.00023692,2]
[386530188,1758355848176,-1000.0,0.00023692,2]
[386530189,1758355848187,-1000.0,0.00023692,2]
[386530190,1758355848198,-152.311063,0.00023692,2]
[386530191,1758355848208,-151.0,0.00023692,2]
[386530192,1758355848218,-500.0,0.00023692,2]
[386530193,1758355848228,-151.0,0.00023692,2]
[386530194,1758355848238,-151.0,0.00023692,2]
[386530195,1758355848248,-1000.0,0.00023692,2]
[386530196,1758355848257,-1000.0,0.00023692,2]
[386530197,1758355848267,-151.0,0.00023692,2]
[386530198,1758355848277,-500.0,0.00023692,2]
[386530199,1758355848287,-176.36474318,0.00023692,2]
[386530200,1758355848296,-151.0,0.00023692,2]
[386530201,1758355848306,-182.98365671,0.00023692,2]
[386530202,1758355848315,-1000.0,0.00023692,2]
[386530203,1758355848325,-151.0,0.00023692,2]
[386530204,1758355848335,-500.0,0.00023692,2]
[386530205,1758355848345,-151.0,0.00023692,2]
[386530206,1758355848355,-500.0,0.00023692,2]
[386530207,1758355848364,-151.0,0.00023692,2]
[386530208,1758355848374,-1000.0,0.00023692,2]
[386530209,1758355848384,-500.0,0.00023692,2]
[386530210,1758355848394,-151.0,0.00023692,2]
[386530211,1758355848404,-1000.0,0.00023692,2]
[386530212,1758355848414,-500.0,0.00023692,2]
[386530213,1758355848425,-151.0,0.00023692,2]
[386530214,1758355848434,-1003.12527388,0.00023692,2]
[386530215,1758355848445,-500.0,0.00023692,2]
[386530216,1758355848455,-151.0,0.00023692,2]
[386530217,1758355848464,-500.0,0.00023692,2]
[386530218,1758355848474,-151.0,0.00023692,2]
[386530219,1758355848484,-182.99536833,0.00023692,2]
[386530220,1758355848494,-151.0,0.00023692,2]
[386530221,1758355848504,-250.0,0.00023692,2]
[386530222,1758355848514,-250.0,0.00023692,2]
[386530223,1758355848524,-250.0,0.00023692,2]
[386530224,1758355848535,-250.0,0.00023692,2]
[386530225,1758355848545,-250.0,0.00023692,2]
[386530226,1758355848555,-189.56778123,0.00023692,2]
[386530227,1758355848565,-250.0,0.00023692,2]
[386530228,1758355848575,-250.0,0.00023692,2]
[386530229,1758355848585,-250.0,0.00023692,2]
[386530230,1758355848595,-250.0,0.00023692,2]
[386530231,1758355848604,-250.0,0.00023692,2]
[386530232,1758355848614,-250.0,0.00023692,2]
[386530233,1758355848623,-250.0,0.00023692,2]
[386530234,1758355848633,-250.0,0.00023692,2]
[386530235,1758355848643,-250.0,0.00023692,2]
[386530236,1758355848652,-250.0,0.00023692,2]
[386530237,1758355848662,-151.0,0.00023692,7]
[386530238,1758355848673,-151.0,0.00023692,7]
[386530239,1758355848682,-319.368859,0.00023692,7]
[386530240,1758355848692,-319.368859,0.00023692,7]
[386530241,1758355848702,-319.368859,0.00023692,7]
[386530242,1758355848711,-319.368859,0.00023692,7]
[386530243,1758355848721,-151.0,0.00023692,7]
[386530244,1758355848730,-151.0,0.00023692,7]
[386530245,1758355848740,-151.0,0.00023692,7]
[386530246,1758355848749,-156.312319,0.00023692,7]
[386530247,1758355848759,-151.0,0.00023692,7]
[386530248,1758355848769,-151.0,0.00023692,7]
[386530249,1758355848779,-151.0,0.00023692,7]
[386530250,1758355848789,-151.0,0.00023692,7]
[386530251,1758355848799,-151.0,0.00023692,7]
[386530252,1758355848808,-151.0,0.00023692,7]
[386530253,1758355848818,-151.0,0.00023692,7]
[386530254,1758355848827,-151.743909,0.00023692,7]
[386530255,1758355848838,-776.36,0.00023711,2]
[386530256,1758355848848,-1048.2,0.00023713,2]
[386530257,1758355848858,-861.41,0.00023713,2]
[386530258,1758355848869,-861.36,0.00023713,2]
[386530259,1758355848879,-580.46428227,0.00023713,2]
[386530260,1758355848888,-480.0,0.00023713,2]
[386530261,1758355848898,-275.35243387,0.00023713,2]
[386530262,1758355848907,-480.0,0.00023713,2]
[386530263,1758355848917,-1317.33,0.00023714,2]
[386530264,1758355848927,-480.0,0.00023716,2]
[386530265,1758355848937,-612.47,0.00023716,2]
[386530266,1758355848949,-480.0,0.00023716,2]
[386530267,1758355848959,-527.54,0.00023716,2]
[386530268,1758355848969,-630.4,0.00023716,2]
[386530269,1758355848979,-1573.09,0.00023716,2]
[386530270,1758355848989,-480.0,0.00023716,2]
[386530271,1758355848999,-975.25,0.00023716,2]
[386530272,1758355849009,-564.56,0.00023717,2]
[386530273,1758355849019,-1221.88,0.00023717,2]
[386530274,1758355849029,-480.0,0.00023721,2]
[386530275,1758355849039,-593.14,0.00023721,2]
[386530276,1758355849049,-480.0,0.00023721,2]
[386530277,1758355849059,-3204.3,0.00023722,2]
[386530278,1758355849068,-734.64,0.00023723,2]
[386530279,1758355849078,-1111.66,0.00023723,2]
[386530280,1758355849087,-500.0,0.00023725,2]
[386530281,1758355849099,-8481.12,0.00023725,2]
[386530282,1758355849110,-480.0,0.00023725,2]
[386530283,1758355849121,-987.75,0.00023725,2]
[386530284,1758355849131,-694.73,0.00023827,2]
[386530285,1758355849143,-776.36,0.00023985,2]
[386530286,1758355849153,-1048.2,0.00023987,2]
[386530287,1758355849163,-861.41,0.00023987,2]
[386530288,1758355849174,-861.36,0.00023987,2]
[386530289,1758355849184,-563.44327552,0.00023987,2]
[386530290,1758355849195,-480.0,0.00023987,2]
[386530291,1758355849206,-1317.33,0.00023988,2]
[386530292,1758355849216,-151.0,0.0002399,7]
[386530293,1758355849226,-480.0,0.0002399,2]
[386530294,1758355849236,-612.47,0.0002399,2]
[386530295,1758355849246,-480.0,0.0002399,2]
[386530296,1758355849256,-630.4,0.0002399,2]
[386530297,1758355849265,-1573.09,0.0002399,2]
[386530298,1758355849275,-480.0,0.0002399,2]
[386530299,1758355849285,-975.25,0.0002399,2]
[386530300,1758355849295,-564.56,0.00023991,2]
[386530301,1758355849305,-1221.88,0.00023991,2]
[386530302,1758355849315,-480.0,0.00023995,2]
[386530303,1758355849325,-593.14,0.00023995,2]
[386530304,1758355849335,-264.84737068,0.00023995,2]
[386530305,1758355849345,-3204.3,0.00023996,2]
[386530306,1758355849355,-734.64,0.00023997,2]
[386530307,1758355849364,-1111.66,0.00023997,2]
[386530308,1758355849374,-500.0,0.00023999,2]
[386530309,1758355849384,-8481.12,0.00023999,2]
[386530310,1758355849393,-480.0,0.00023999,2]
[386530311,1758355849403,-987.75,0.00023999,2]
[386530312,1758355849412,-848.27550084,0.00024,7]
[386530313,1758355849422,-1000.0,0.00024021,2]
[386530314,1758355849431,-1000.0,0.00024021,2]
[386530315,1758355849442,-2725.1482802,0.00024022,2]
[386530316,1758355849452,-382.19811689,0.00024022,2]
[386530317,1758355849462,-1528.79246758,0.00024022,2]
[386530318,1758355849471,-3436.343269,0.00024022,2]
[386530319,1758355849480,-628.0,0.0002407,2]
[386530320,1758355849490,-165.765,0.00024101,6]
[386530321,1758355849499,-694.73,0.00024101,2]
[386530322,1758355849509,-1173.50382889,0.00024152,2]
[386530323,1758355849519,-560.0,0.00024225,2]
[386530324,1758355849528,-776.36,0.00024259,2]
[386530325,1758355849537,-1048.2,0.00024261,2]
[386530326,1758355849547,-861.41,0.00024261,2]
[386530327,1758355849557,-861.36,0.00024261,2]
[386530328,1758355849566,-480.0,0.00024261,2]
[386530329,1758355849576,-1317.33,0.00024262,2]
[386530330,1758355849585,-480.0,0.00024264,2]
[386530331,1758355849595,-612.47,0.00024264,2]
[386530332,1758355849605,-588.31,0.00024264,2]
[386530333,1758355849615,-630.4,0.00024264,2]
[386530334,1758355849625,-1573.09,0.00024264,2]
[386530335,1758355849635,-480.0,0.00024264,2]
[386530336,1758355849644,-975.25,0.00024264,2]
[386530337,1758355849654,-564.56,0.00024265,2]
[386530338,1758355849663,-1221.88,0.00024265,2]
[386530339,1758355849673,-480.0,0.00024269,2]
[386530340,1758355849683,-593.14,0.00024269,2]
[386530341,1758355849692,-3204.3,0.0002427,2]
[386530342,1758355849702,-734.64,0.00024271,2]
[386530343,1758355849712,-1111.66,0.00024271,2]
[386530344,1758355849721,-500.0,0.00024273,2]
[386530345,1758355849731,-8481.12,0.00024273,2]
[386530346,1758355849741,-190.36412377,0.00024273,2]
[386530347,1758355849750,-987.75,0.00024273,2]
[386530348,1758355849760,-246.11226028,0.00024306,7]
[386530349,1758355849769,-189.266195,0.00024375,7]
[386530350,1758355849779,-189.266195,0.00024375,7]
[386530351,1758355849788,-189.266195,0.00024375,7]
[386530352,1758355849798,-189.266195,0.00024375,7]
[386530353,1758355849807,-151.0,0.00024375,7]
[386530354,1758355849818,-151.0,0.00024375,7]
[386530355,1758355849827,-414.791872,0.00024375,7]
[386530356,1758355849838,-414.791872,0.00024375,7]
[386530357,1758355849848,-414.791872,0.00024375,7]
[386530358,1758355849857,-414.791872,0.00024375,7]
[386530359,1758355849868,-694.73,0.00024375,2]
[386530360,1758355849878,-151.0,0.00024375,7]
[386530361,1758355849888,-159.856233,0.00024375,7]
[386530362,1758355849898,-154.604451,0.00024375,7]
[386530363,1758355849908,-151.0,0.00024375,7]
[386530364,1758355849919,-154.604451,0.00024375,7]
[386530365,1758355849929,-154.604451,0.00024375,7]
[386530366,1758355849939,-154.604451,0.00024375,7]
[386530367,1758355849949,-153.283506,0.00024375,7]
[386530368,1758355849959,-151.0,0.00024375,7]
[386530369,1758355849968,-151.0,0.00024379,7]
[386530370,1758355849977,-151.0,0.00024379,7]
[386530371,1758355849987,-151.0,0.00024379,7]
[386530372,1758355849996,-151.0,0.00024379,7]
[386530373,1758355850005,-151.0,0.00024379,7]
[386530374,1758355850015,-628.0,0.00024411,2]
[386530375,1758355850025,-151.0,0.00024436,7]
[386530376,1758355850035,-151.0,0.00024436,7]
[386530377,1758355850045,-151.0,0.00024436,7]
[386530378,1758355850054,-292.024576,0.00024436,7]
[386530379,1758355850063,-292.024576,0.00024436,7]
[386530380,1758355850074,-292.024576,0.00024436,7]
[386530381,1758355850084,-292.024576,0.00024436,7]
[386530382,1758355850094,-151.0,0.00024436,7]
[386530383,1758355850183,-151.0,0.00024436,7]
[386530384,1758355850193,-151.0,0.00024436,7]
[386530385,1758355850203,-151.0,0.00024436,7]
[386530386,1758355850212,-151.0,0.00024436,7]
[386530387,1758355850223,-151.0,0.00024436,7]
[386530388,1758355850232,-151.0,0.00024436,7]
[386530389,1758355850243,-776.36,0.00024533,2]
[386530390,1758355850253,-1048.2,0.00024535,2]
[386530391,1758355850263,-861.41,0.00024535,2]
[386530392,1758355850273,-861.36,0.00024535,2]
[386530393,1758355850282,-480.0,0.00024535,2]
[386530394,1758355850292,-1317.33,0.00024536,2]
[386530395,1758355850301,-480.0,0.00024538,2]
[386530396,1758355850311,-612.47,0.00024538,2]
[386530397,1758355850320,-630.4,0.00024538,2]
[386530398,1758355850330,-1573.09,0.00024538,2]
[386530399,1758355850340,-449.63,0.00024538,2]